bitfinex/quotes_BTCUSD_20251025
["timestamp","ask_amount","ask_price","bid_price","bid_amount"]
[1761381720902,0.33657121,111650.0,111640.0,0.30515074]
[1761381721109,0.33657121,111650.0,111640.0,0.48429799]
[1761381721321,0.33657121,111650.0,111630.0,0.59923049]
[1761381721976,0.33657121,111650.0,111630.0,0.59823049]
[1761381722177,0.17914725,111640.0,111630.0,0.59823049]
[1761381722389,0.17914725,111640.0,111630.0,0.29307975]
[1761381722593,0.17914725,111640.0,111630.0,0.59823049]
[1761381724084,0.17914725,111640.0,111630.0,0.59923049]
[1761381724621,0.17914725,111640.0,111630.0,0.59823049]
[1761381725035,0.18214725,111640.0,111630.0,0.59823049]
[1761381727755,0.18214725,111640.0,111630.0,0.59856738]
[1761381732009,0.18214725,111640.0,111630.0,0.29341664]
[1761381732174,0.18214725,111640.0,111630.0,0.59856816]
[1761381732780,0.18214725,111640.0,111630.0,0.41940486]
[1761381732991,0.18214725,111640.0,111630.0,0.11425412]
[1761381733212,0.18214725,111640.0,111630.0,0.41940486]
[1761381733986,0.18214725,111640.0,111630.0,0.11425412]
[1761381734545,0.53916984,111640.0,111630.0,0.00038594]
[1761381734951,0.2340191,111640.0,111630.0,0.00038594]
[1761381735625,0.53916984,111640.0,111630.0,0.00038594]
[1761381735873,0.2340191,111640.0,111630.0,0.00038594]
[1761381742518,0.2913391,111640.0,111630.0,0.00038594]
[1761381749466,0.59648984,111640.0,111630.0,0.00038594]
[1761381751099,0.2913391,111640.0,111630.0,0.00038594]
[1761381751315,0.59648984,111640.0,111630.0,0.00038594]
[1761381756838,0.2913391,111640.0,111630.0,0.00038594]
[1761381775313,0.2913391,111640.0,111630.0,0.59244712]
[1761381775314,0.003,111640.0,111630.0,0.59244712]
[1761381775542,0.003,111640.0,111630.0,0.59868342]
[1761381775763,0.003,111640.0,111630.0,0.32564464]
[1761381775999,0.003,111640.0,111630.0,0.63080718]
[1761381780450,0.003,111640.0,111630.0,0.59868342]
[1761381787217,0.003,111640.0,111630.0,0.62557946]
[1761381789288,0.003,111640.0,111630.0,0.62554325]
[1761381790445,0.18214725,111640.0,111630.0,0.62554325]
[1761381793089,0.003,111640.0,111630.0,0.62554325]
[1761381802532,0.003,111640.0,111630.0,0.65766701]
[1761381805065,0.003,111640.0,111630.0,0.63355059]
[1761381808654,0.18214725,111640.0,111630.0,0.63355059]
[1761381814174,0.18214725,111640.0,111630.0,0.32838805]
[1761381814376,0.18214725,111640.0,111630.0,0.63355059]
[1761381815860,0.18214725,111640.0,111630.0,0.32838805]
[1761381816200,0.18214725,111640.0,111630.0,0.63355059]
[1761381816970,0.18214725,111640.0,111630.0,0.63347614]
[1761381818126,0.18214725,111640.0,111630.0,0.30149201]
[1761381818333,0.18214725,111640.0,111630.0,0.39529304]
[1761381818961,0.53907936,111640.0,111630.0,0.00038594]
[1761381819169,0.23399127,111640.0,111630.0,0.00038594]
[1761381824281,0.23399127,111640.0,111630.0,0.30547403]
[1761381825681,0.23399127,111640.0,111630.0,0.00038594]
[1761381831629,0.18214725,111640.0,111630.0,0.30547403]
[1761381831843,0.33926725,111640.0,111630.0,0.57445634]
[1761381832265,0.16012,111640.0,111630.0,0.57445634]
[1761381843312,0.16012,111640.0,111630.0,0.59857767]
[1761381858916,0.16012,111640.0,111630.0,0.59860194]
[1761381862359,0.16012,111640.0,111630.0,0.93581379]
[1761381871180,0.16012,111640.0,111630.0,0.6307257]
[1761381871388,0.16012,111640.0,111630.0,0.65762174]
[1761381873012,0.16012,111640.0,111630.0,0.96270983]
[1761381874228,0.16012,111640.0,111630.0,0.65762174]
[1761381874580,0.16012,111640.0,111630.0,0.96270983]
[1761381876081,0.16012,111640.0,111630.0,0.65762174]
[1761381876975,0.16012,111640.0,111630.0,0.66151974]
[1761381878790,0.16012,111640.0,111630.0,0.66148829]
[1761381882786,0.16012,111640.0,111630.0,0.63734269]
[1761381882991,0.16012,111640.0,111630.0,0.66147723]
[1761381885262,0.003,111640.0,111630.0,3.33058156]
[1761381885468,0.003,111640.0,111630.0,3.2984578]
[1761381893532,4e-05,111650.0,111630.0,3.2984578]
[1761381893533,4e-05,111650.0,111640.0,0.17914725]
[1761381893714,4e-05,111650.0,111640.0,0.64817828]
[1761381894028,4e-05,111650.0,111640.0,0.63026356]
[1761381894352,4e-05,111650.0,111640.0,2.68123484]
[1761381895377,4e-05,111650.0,111640.0,2.63305261]
[1761381895788,4e-05,111650.0,111640.0,2.63405261]
[1761381898490,4e-05,111650.0,111640.0,2.64296048]
[1761381899720,4e-05,111650.0,111640.0,2.69114271]
[1761381900402,4e-05,111650.0,111640.0,3.49327935]
[1761381900614,4e-05,111650.0,111640.0,3.15608519]
[1761381900797,4e-05,111650.0,111640.0,3.10790296]
[1761381901263,4e-05,111650.0,111640.0,3.15607456]
[1761381901475,4e-05,111650.0,111640.0,3.15507456]
[1761381901689,4e-05,111650.0,111640.0,3.15607456]
[1761381902502,4e-05,111650.0,111640.0,3.16007456]
[1761381915410,4e-05,111650.0,111640.0,3.11190296]
[1761381915946,4e-05,111650.0,111640.0,3.26160296]
[1761381922271,4e-05,111650.0,111640.0,3.32584062]
[1761381936250,4e-05,111650.0,111640.0,3.63089726]
[1761381937063,4e-05,111650.0,111640.0,3.5666596]
[1761381937262,4e-05,111650.0,111640.0,3.64710685]
[1761381938404,4e-05,111650.0,111640.0,3.5666596]
[1761381938850,4e-05,111650.0,111640.0,3.87103209]
[1761381939889,4e-05,111650.0,111640.0,4.21204296]
[1761381940096,4e-05,111650.0,111640.0,4.91214738]
[1761381940308,4e-05,111650.0,111640.0,3.99766161]
[1761381943051,4e-05,111650.0,111640.0,4.3024902]
[1761381944986,4e-05,111650.0,111640.0,3.99766161]
[1761381948256,4e-05,111650.0,111640.0,4.3024902]
[1761381951136,4e-05,111650.0,111640.0,4.94895292]
[1761381951348,0.05736,111700.0,111690.0,0.17906706]
[1761381951585,0.05736,111700.0,111690.0,0.59162136]
[1761381951737,0.05736,111700.0,111690.0,0.57371466]
[1761381952506,0.05985115,111700.0,111690.0,0.57371466]
[1761381953770,0.05785115,111700.0,111690.0,0.57371466]
[1761381954981,0.05785115,111700.0,111690.0,0.59778254]
[1761381956261,0.05785115,111700.0,111690.0,0.57371466]
[1761381957426,0.05785115,111700.0,111690.0,0.59778254]
[1761381959578,0.05785115,111700.0,111690.0,0.29295395]
[1761381959785,0.05785115,111700.0,111690.0,0.59778254]
[1761381960244,0.00053115,111700.0,111690.0,1.24261113]
[1761381960475,0.00053115,111700.0,111690.0,3.40771376]
[1761381960724,0.01387967,111730.0,111720.0,0.17901897]
[1761381960943,0.01387967,111730.0,111720.0,0.2929233]
[1761381961155,0.01387967,111730.0,111720.0,0.41873292]
[1761381961372,0.18903129,111730.0,111720.0,0.26888703]
[1761381962265,0.36803424,111730.0,111720.0,0.26888703]
[1761381962482,0.35012262,111730.0,111720.0,0.26888703]
[1761381962697,0.35312262,111730.0,111720.0,0.26888703]
[1761381967926,0.65795121,111730.0,111720.0,4.905e-05]
[1761381968152,1.08878109,111730.0,111720.0,4.905e-05]
[1761381968381,1.63474405,111730.0,111720.0,4.905e-05]
[1761381970525,1.63174405,111730.0,111720.0,4.905e-05]
[1761381970949,1.63474405,111730.0,111720.0,4.905e-05]
[1761381971168,1.63174405,111730.0,111720.0,4.905e-05]
[1761381971378,1.72156306,111730.0,111720.0,4.905e-05]
[1761381971583,1.72256306,111730.0,111720.0,4.905e-05]
[1761381972735,1.63274405,111730.0,111720.0,4.905e-05]
[1761381975248,1.63278405,111730.0,111720.0,4.905e-05]
[1761381980360,1.89268404,111730.0,111720.0,4.905e-05]
[1761381992658,1.58785545,111730.0,111720.0,4.905e-05]
[1761381992876,1.57785546,111730.0,111720.0,4.905e-05]
[1761381993525,1.64207077,111730.0,111720.0,4.905e-05]
[1761381995004,1.57785546,111730.0,111720.0,4.905e-05]
[1761381997268,1.6020273,111730.0,111720.0,4.905e-05]
[1761381997999,1.57785546,111730.0,111720.0,4.905e-05]
[1761381998867,1.57775804,111730.0,111720.0,4.905e-05]
[1761382001108,1.63503804,111730.0,111720.0,4.905e-05]
[1761382002115,1.20430558,111730.0,111720.0,4.905e-05]
[1761382002656,1.24048786,111730.0,111720.0,4.905e-05]
[1761382007990,0.99058786,111730.0,111720.0,4.905e-05]
[1761382008431,1.29531903,111730.0,111720.0,4.905e-05]
[1761382014134,1.29539193,111730.0,111720.0,4.905e-05]
[1761382021626,1.38521094,111730.0,111720.0,4.905e-05]
[1761382022436,1.29539193,111730.0,111720.0,4.905e-05]
[1761382032428,0.99066076,111730.0,111720.0,4.905e-05]
[1761382032632,1.29539193,111730.0,111720.0,4.905e-05]
[1761382046324,0.99066076,111730.0,111720.0,4.905e-05]
[1761382048426,1.29539193,111730.0,111720.0,4.905e-05]
[1761382060740,1.29540204,111730.0,111720.0,4.905e-05]
[1761382065689,1.38522105,111730.0,111720.0,4.905e-05]
[1761382066466,1.29540204,111730.0,111720.0,4.905e-05]
[1761382071763,1.68996233,111730.0,111720.0,4.905e-05]
[1761382072123,1.7141373,111730.0,111720.0,4.905e-05]
[1761382075559,1.74637478,111730.0,111720.0,4.905e-05]
[1761382077212,1.7141373,111730.0,111720.0,4.905e-05]
[1761382079986,1.76060481,111730.0,111720.0,4.905e-05]
[1761382082530,1.7141373,111730.0,111720.0,4.905e-05]
[1761382082835,1.50366602,111730.0,111720.0,4.905e-05]
[1761382083047,1.40939602,111730.0,111720.0,4.905e-05]
[1761382083244,1.7141373,111730.0,111720.0,4.905e-05]
[1761382083399,1.40939602,111730.0,111720.0,4.905e-05]
[1761382087275,1.49921503,111730.0,111720.0,4.905e-05]
[1761382089542,1.40939602,111730.0,111720.0,4.905e-05]
[1761382091559,1.31957701,111730.0,111720.0,4.905e-05]
[1761382095079,0.83342076,111730.0,111720.0,4.905e-05]
[1761382095287,0.99046076,111730.0,111720.0,4.905e-05]
[1761382103413,1.29520204,111730.0,111720.0,4.905e-05]
[1761382103593,0.99046076,111730.0,111720.0,4.905e-05]
[1761382103794,1.29520204,111730.0,111720.0,4.905e-05]
[1761382104066,1.29492413,111730.0,111720.0,4.905e-05]
[1761382109190,1.75764502,111730.0,111720.0,4.905e-05]
[1761382109408,1.78181999,111730.0,111720.0,4.905e-05]
[1761382113179,1.40891811,111730.0,111720.0,4.905e-05]
[1761382122945,1.40894214,111730.0,111720.0,4.905e-05]
[1761382131271,1.10417683,111730.0,111720.0,4.905e-05]
[1761382131499,1.25190214,111730.0,111720.0,4.905e-05]
[1761382131771,1.40894214,111730.0,111720.0,4.905e-05]
[1761382135291,1.08000186,111730.0,111720.0,4.905e-05]
[1761382135497,1.38476717,111730.0,111720.0,4.905e-05]
[1761382136348,1.08000186,111730.0,111720.0,4.905e-05]
[1761382136914,1.38476717,111730.0,111720.0,4.905e-05]
[1761382137119,1.40894214,111730.0,111720.0,4.905e-05]
[1761382137837,1.49876115,111730.0,111720.0,4.905e-05]
[1761382138047,1.53099863,111730.0,111720.0,4.905e-05]
[1761382139064,1.50682366,111730.0,111720.0,4.905e-05]
[1761382139309,1.55524061,111730.0,111720.0,4.905e-05]
[1761382140828,1.87000591,111730.0,111720.0,4.905e-05]
[1761382141049,1.5652406,111730.0,111720.0,4.905e-05]
[1761382144219,0.76725629,111730.0,111720.0,4.905e-05]
[1761382144431,1.44120547,111730.0,111720.0,4.905e-05]
[1761382145927,1.38392547,111730.0,111720.0,4.905e-05]
[1761382146137,1.25192799,111730.0,111720.0,4.905e-05]
[1761382146340,1.40896799,111730.0,111720.0,4.905e-05]
[1761382148419,1.38480717,111730.0,111720.0,4.905e-05]
[1761382148735,1.40896531,111730.0,111720.0,4.905e-05]
[1761382149259,1.1042,111730.0,111720.0,4.905e-05]
[1761382149465,1.40896531,111730.0,111720.0,4.905e-05]
[1761382150276,1.1042,111730.0,111720.0,4.905e-05]
[1761382152370,0.99022285,111730.0,111720.0,4.905e-05]
[1761382159495,1.29498816,111730.0,111720.0,4.905e-05]
[1761382163103,1.3191463,111730.0,111720.0,4.905e-05]
[1761382165606,1.49878432,111730.0,111720.0,4.905e-05]
[1761382175789,1.5310218,111730.0,111720.0,4.905e-05]
[1761382180821,1.50686366,111730.0,111720.0,4.905e-05]
[1761382184954,1.81180135,111730.0,111720.0,4.905e-05]
[1761382197630,1.11227934,111730.0,111720.0,4.905e-05]
[1761382198062,1.72198234,111730.0,111720.0,4.905e-05]
[1761382201341,1.77039929,111730.0,111720.0,4.905e-05]
[1761382205855,1.46554779,111730.0,111720.0,4.905e-05]
[1761382212993,1.48346779,111730.0,111720.0,4.905e-05]
[1761382213214,1.46214236,111730.0,111720.0,4.905e-05]
[1761382215543,1.52104883,111730.0,111720.0,4.905e-05]
[1761382218467,1.52445426,111730.0,111720.0,4.905e-05]
[1761382218693,0.641255,111730.0,111720.0,4.905e-05]
[1761382218906,1.6589571,111730.0,111720.0,4.905e-05]
[1761382219109,1.77044223,111730.0,111720.0,4.905e-05]
[1761382219784,1.76944223,111730.0,111720.0,4.905e-05]
[1761382221956,1.15973923,111730.0,111720.0,4.905e-05]
[1761382222162,1.46459073,111730.0,111720.0,4.905e-05]
[1761382223890,1.15973923,111730.0,111720.0,4.905e-05]
[1761382224094,1.46459073,111730.0,111720.0,4.905e-05]
[1761382228184,1.31170354,111730.0,111720.0,4.905e-05]
[1761382228444,1.28746145,111730.0,111720.0,4.905e-05]
[1761382228666,1.32364373,111730.0,111720.0,4.905e-05]
[1761382230730,1.29946887,111730.0,111720.0,4.905e-05]
[1761382230942,1.32363838,111730.0,111720.0,4.905e-05]
[1761382234991,1.5032764,111730.0,111720.0,4.905e-05]
[1761382235393,1.1984249,111730.0,111720.0,4.905e-05]
[1761382235737,1.5032764,111730.0,111720.0,4.905e-05]
[1761382244997,1.8081279,111730.0,111720.0,4.905e-05]
[1761382246763,1.5032298,111730.0,111720.0,4.905e-05]
[1761382257523,1.47906029,111730.0,111720.0,4.905e-05]
[1761382260375,1.52747724,111730.0,111720.0,4.905e-05]
[1761382260934,1.55436106,111730.0,111720.0,4.905e-05]
[1761382263161,1.55436106,111730.0,111720.0,0.00104905]
[1761382265576,1.85916596,111730.0,111720.0,0.00104905]
[1761382266217,1.55436106,111730.0,111720.0,0.00104905]
[1761382269407,1.16088106,111730.0,111720.0,0.00104905]
[1761382269637,0.70976379,111730.0,111720.0,0.00104905]
[1761382269849,1.10320379,111730.0,111720.0,0.00104905]
[1761382270072,1.40800869,111730.0,111720.0,0.00104905]
[1761382272019,1.35076869,111730.0,111720.0,0.00104905]
[1761382272243,1.40804869,111730.0,111720.0,0.00104905]
[1761382272919,1.4978677,111730.0,111720.0,0.00104905]
[1761382279300,1.1043877,111730.0,111720.0,0.00104905]
[1761382279504,1.4977877,111730.0,111720.0,0.00104905]
[1761382281288,1.53002518,111730.0,111720.0,0.00104905]
[1761382285472,0.07011321,111730.0,111720.0,0.48487292]
[1761382285730,0.07011321,111730.0,111720.0,0.18006802]
[1761382285731,0.22827466,111730.0,111720.0,0.18006802]
[1761382285935,0.22827466,111730.0,111720.0,0.51174983]
[1761382286165,0.01371466,111730.0,111720.0,0.60156884]
[1761382286390,0.01371466,111730.0,111720.0,0.90537374]
[1761382286606,0.22831466,111730.0,111720.0,0.9294376]
[1761382286869,0.01371466,111730.0,111720.0,2.9294376]
[1761382287114,0.22831466,111730.0,111720.0,2.96148596]
[1761382287325,0.01571466,111730.0,111720.0,2.9294376]
[1761382287572,0.22831466,111730.0,111720.0,2.9294376]
[1761382288241,0.22831466,111730.0,111720.0,2.93849259]
[1761382289402,0.01371466,111730.0,111720.0,2.91442873]
[1761382289612,0.22831466,111730.0,111720.0,2.91442873]
[1761382290246,0.01371466,111730.0,111720.0,2.29576394]
[1761382290455,0.22831466,111730.0,111720.0,2.90537374]
[1761382296028,0.01371466,111730.0,111720.0,2.90537374]
[1761382296198,0.22827466,111730.0,111720.0,2.90537374]
[1761382297269,0.22827466,111730.0,111720.0,0.60056884]
[1761382299118,0.17095466,111730.0,111720.0,0.60056884]
[1761382299332,0.22823466,111730.0,111720.0,0.60056884]
[1761382300994,0.22823466,111730.0,111720.0,0.90537374]
[1761382301821,0.01371466,111730.0,111720.0,2.90537374]
[1761382302110,0.22823466,111730.0,111720.0,2.90537374]
[1761382302781,0.22823466,111730.0,111720.0,2.29576394]
[1761382302986,0.22823466,111730.0,111720.0,2.90537374]
[1761382303226,0.01371466,111730.0,111720.0,2.90537374]
[1761382303427,0.22819466,111730.0,111720.0,2.90537374]
[1761382303623,0.01371466,111730.0,111720.0,2.90537374]
[1761382303928,0.22819466,111730.0,111720.0,2.90537374]
[1761382304257,0.01371466,111730.0,111720.0,2.90537374]
[1761382304529,0.22819466,111730.0,111720.0,2.90537374]
[1761382306862,0.22819466,111730.0,111720.0,2.90482306]
[1761382308287,0.17091466,111730.0,111720.0,2.90482306]
[1761382308505,0.22819466,111730.0,111720.0,2.90482306]
[1761382308930,0.01371466,111730.0,111720.0,2.90482306]
[1761382309136,0.22819466,111730.0,111720.0,2.90482306]
[1761382309588,0.01371466,111730.0,111720.0,2.90482306]
[1761382309783,0.22819466,111730.0,111720.0,3.20935262]
[1761382309987,0.01371466,111730.0,111720.0,3.20935262]
[1761382310226,0.22819466,111730.0,111720.0,3.20935262]
[1761382312213,0.01371466,111730.0,111720.0,2.92888692]
[1761382312430,0.22819466,111730.0,111720.0,2.92888692]
[1761382313138,0.22819466,111730.0,111720.0,3.23341648]
[1761382313339,0.01371466,111730.0,111720.0,3.23341648]
[1761382313552,0.17087466,111730.0,111720.0,3.23341648]
[1761382314236,0.17087466,111730.0,111720.0,3.26546484]
[1761382315335,0.17087466,111730.0,111720.0,2.98494396]
[1761382316260,0.17087466,111730.0,111720.0,2.9528956]
[1761382318599,0.17087466,111730.0,111720.0,3.25742516]
[1761382321477,0.01371466,111730.0,111720.0,3.25742516]
[1761382324132,0.01371466,111730.0,111720.0,3.75458516]
[1761382324347,0.01371466,111730.0,111720.0,2.84099648]
[1761382324563,0.01371466,111730.0,111720.0,4.01104218]
[1761382325019,0.01371466,111730.0,111720.0,3.70651262]
[1761382326515,0.01371466,111730.0,111720.0,3.70751262]
[1761382326716,0.01371466,111730.0,111720.0,3.70651262]
[1761382326942,0.01371466,111730.0,111720.0,3.70751262]
[1761382327836,0.01371466,111730.0,111720.0,3.71051262]
[1761382328251,0.01371466,111730.0,111720.0,3.75865429]
[1761382328450,0.01371466,111730.0,111720.0,3.90835429]
[1761382329321,0.01371466,111730.0,111720.0,3.90835151]
[1761382330562,0.01371466,111730.0,111720.0,3.86021262]
[1761382330768,0.01371466,111730.0,111720.0,3.92439364]
[1761382331354,0.01371466,111730.0,111720.0,3.86021262]
[1761382333376,0.01371466,111730.0,111720.0,3.92439364]
[1761382333995,1e-08,111730.0,111720.0,3.05698723]
[1761382334185,1e-08,111730.0,111720.0,4.91472615]
[1761382334862,1e-08,111730.0,111720.0,4.86054512]
[1761382335071,1e-08,111730.0,111720.0,5.03258899]
[1761382335283,1e-08,111730.0,111720.0,5.00578344]
[1761382335696,1e-08,111730.0,111720.0,5.00478344]
[1761382335903,1e-08,111730.0,111720.0,4.90720984]
[1761382336313,0.0002,111740.0,111730.0,0.57518521]
[1761382336586,0.0002,111740.0,111730.0,3.5785929]
[1761382336804,0.00053642,111740.0,111730.0,3.5785929]
[1761382337006,0.00053642,111740.0,111730.0,3.60267882]
[1761382337212,0.00053642,111740.0,111730.0,3.66670587]
[1761382337378,0.00053642,111740.0,111730.0,3.60267882]
[1761382337545,0.00053642,111740.0,111730.0,3.60367882]
[1761382337755,0.00053642,111740.0,111730.0,3.60467882]
[1761382338150,0.00053642,111740.0,111730.0,3.66868104]
[1761382339798,0.00053642,111740.0,111730.0,3.66768104]
[1761382340063,0.00053642,111740.0,111730.0,3.66968104]
[1761382340233,0.00053642,111740.0,111730.0,3.66868104]
[1761382340447,0.00053642,111740.0,111730.0,3.82338104]
[1761382343200,0.00053642,111740.0,111730.0,2.90979236]
[1761382343415,0.00053642,111740.0,111730.0,3.82338104]
[1761382345555,0.00053642,111740.0,111730.0,2.72391008]
[1761382345762,0.00053642,111740.0,111730.0,2.35577242]
[1761382345962,0.00053642,111740.0,111730.0,2.30780286]
[1761382346168,0.00053642,111740.0,111730.0,2.60434138]
[1761382346348,0.00053642,111740.0,111730.0,2.60234138]
[1761382346694,0.00053642,111740.0,111730.0,2.59834138]
[1761382346900,0.00053642,111740.0,111730.0,2.59934138]
[1761382347329,0.00053642,111740.0,111730.0,2.59834138]
[1761382347535,0.00153642,111740.0,111730.0,2.59834138]
[1761382347954,0.00153642,111740.0,111730.0,2.59734138]
[1761382349946,0.00153642,111740.0,111730.0,2.90187094]
[1761382350601,0.00153642,111740.0,111730.0,2.29281182]
[1761382350830,0.00153642,111740.0,111730.0,2.59734138]
[1761382351036,0.00153642,111740.0,111730.0,2.90187094]
[1761382355383,0.00153642,111740.0,111730.0,2.9018943]
[1761382357772,0.00153642,111740.0,111730.0,2.29283518]
[1761382357971,0.00153642,111740.0,111730.0,2.9018943]
[1761382359455,0.00153642,111740.0,111730.0,2.9338752]
[1761382361085,0.00153642,111740.0,111730.0,2.9028943]
[1761382361435,0.00053642,111740.0,111730.0,2.9028943]
[1761382361583,0.00053642,111740.0,111730.0,2.9018943]
[1761382361763,0.00053642,111740.0,111730.0,2.9058943]
[1761382365232,0.00053642,111740.0,111730.0,2.9378752]
[1761382368942,0.00053642,111740.0,111730.0,2.63329298]
[1761382370491,0.00053642,111740.0,111730.0,2.32881608]
[1761382370716,0.00053642,111740.0,111730.0,2.63329298]
[1761382371357,0.00053642,111740.0,111730.0,2.63229298]
[1761382371565,0.00053642,111740.0,111730.0,2.63029298]
[1761382371787,0.00053642,111740.0,111730.0,2.63129298]
[1761382372202,0.00053642,111740.0,111730.0,2.60727976]
[1761382373063,0.00053642,111740.0,111730.0,2.60627976]
[1761382373274,0.00053642,111740.0,111730.0,2.60727976]
[1761382374145,0.00053642,111740.0,111730.0,2.65524932]
[1761382375243,0.00053642,111740.0,111730.0,2.62326842]
[1761382375649,0.00053642,111740.0,111730.0,2.96326842]
[1761382375848,0.00053642,111740.0,111730.0,2.91529886]
[1761382377843,0.00053642,111740.0,111730.0,2.96347369]
[1761382382299,0.00057642,111740.0,111730.0,2.96347369]
[1761382387712,0.00057642,111740.0,111730.0,2.65899679]
[1761382387923,0.00057642,111740.0,111730.0,2.96347369]
[1761382391190,0.00157642,111740.0,111730.0,2.96347369]
[1761382395049,0.00157642,111740.0,111730.0,3.12087369]
[1761382395652,0.00157642,111740.0,111730.0,3.37717576]
[1761382395877,0.00157642,111740.0,111730.0,3.13670108]
[1761382396042,0.00157642,111740.0,111730.0,3.44117798]
[1761382396241,0.00157642,111740.0,111730.0,3.13670108]
[1761382396446,0.00157642,111740.0,111730.0,3.4652639]
[1761382396942,0.00157642,111740.0,111730.0,3.6149639]
[1761382397367,0.00157642,111740.0,111730.0,3.310487]
[1761382398207,0.00157642,111740.0,111730.0,3.4652639]
[1761382398411,0.00157642,111740.0,111730.0,3.56585601]
[1761382398621,0.00157642,111740.0,111730.0,3.20709533]
[1761382399448,0.00157642,111740.0,111730.0,3.51157223]
[1761382399658,1e-08,111740.0,111730.0,3.575856]
[1761382399861,1e-08,111740.0,111730.0,3.48116616]
[1761382400288,1e-08,111740.0,111730.0,2.87221236]
[1761382400499,1e-08,111740.0,111730.0,3.56139244]
[1761382400738,1e-08,111740.0,111730.0,3.56039244]
[1761382400949,1e-08,111740.0,111730.0,3.56339244]
[1761382401289,1e-08,111740.0,111730.0,3.56539244]
[1761382401932,1e-08,111740.0,111730.0,3.54167022]
[1761382402155,0.02775656,111790.0,111770.0,0.18892548]
[1761382402368,0.02775656,111790.0,111780.0,2.88575453]
[1761382402583,0.02775656,111790.0,111780.0,2.83589929]
[1761382403004,0.02775656,111790.0,111780.0,3.16722955]
[1761382403286,0.02775656,111790.0,111780.0,2.95254955]
[1761382403497,0.02839575,111820.0,111810.0,3.13782866]
[1761382403749,0.02839575,111820.0,111810.0,3.45536101]
[1761382403920,0.02839575,111820.0,111810.0,3.4641346]
[1761382404360,0.02839575,111820.0,111810.0,3.43512062]
[1761382404767,0.02839575,111820.0,111810.0,3.46802503]
[1761382405408,0.02839575,111820.0,111810.0,3.43612062]
[1761382405768,0.02839575,111820.0,111810.0,3.43712062]
[1761382406491,0.02839575,111820.0,111810.0,3.40445541]
[1761382408765,0.02839575,111820.0,111810.0,3.39619541]
[1761382409180,0.031085,111820.0,111810.0,3.39619541]
[1761382410975,0.031085,111820.0,111810.0,3.36934768]
[1761382414581,0.031085,111820.0,111810.0,3.21964768]
[1761382414817,0.031085,111820.0,111810.0,2.61069388]
[1761382415024,0.031085,111820.0,111810.0,0.91517078]
[1761382415249,0.188925,111820.0,111810.0,0.91517078]
[1761382416146,0.36778388,111820.0,111810.0,0.57517078]
[1761382416572,0.36778388,111820.0,111810.0,0.09181901]
[1761382417276,0.36778388,111820.0,111810.0,0.09081901]
[1761382417802,0.17887487,111810.0,111800.0,2.0]
[1761382418041,0.23611487,111810.0,111800.0,0.39429591]
[1761382418284,0.23846817,111810.0,111800.0,0.39429591]
[1761382418711,0.23846817,111810.0,111800.0,0.26870988]
[1761382418919,0.23846817,111810.0,111800.0,0.57318678]
[1761382419136,0.24146817,111810.0,111800.0,0.57318678]
[1761382420775,0.24146817,111810.0,111800.0,0.26870988]
[1761382421270,0.24146817,111810.0,111800.0,0.57318678]
[1761382421802,0.24146817,111810.0,111800.0,0.26870988]
[1761382421992,0.24146817,111810.0,111800.0,0.57318678]
[1761382422610,0.24146817,111810.0,111800.0,0.39429591]
[1761382423838,0.24146817,111810.0,111800.0,0.26870988]
[1761382424046,0.24146817,111810.0,111800.0,0.57318678]
[1761382425974,0.0625933,111810.0,111800.0,0.26870988]
[1761382426182,0.24146817,111810.0,111800.0,0.57318678]
[1761382429016,0.24146817,111810.0,111800.0,0.08981901]
[1761382429223,0.24146817,111810.0,111800.0,0.39429591]
[1761382429432,0.24146817,111810.0,111800.0,0.57318678]
[1761382429642,0.24146817,111810.0,111800.0,0.37129591]
[1761382430760,0.24146817,111810.0,111800.0,0.67516265]
[1761382432130,0.24146817,111810.0,111800.0,0.37099083]
[1761382432390,0.24146817,111810.0,111800.0,0.06681901]
[1761382432533,0.24146817,111810.0,111800.0,0.37099083]
[1761382433773,0.24146817,111810.0,111800.0,0.06681901]
[1761382433989,0.24146817,111810.0,111800.0,0.37099083]
[1761382440680,0.17889087,111800.0,111790.0,0.32806652]
[1761382440888,0.17889087,111800.0,111790.0,0.39399083]
[1761382440889,0.33657087,111800.0,111790.0,0.39399083]
[1761382441276,0.33657087,111800.0,111790.0,0.08981901]
[1761382441523,0.33657087,111800.0,111790.0,0.39399083]
[1761382441945,0.33657087,111800.0,111790.0,0.39499083]
[1761382443203,0.17989087,111800.0,111790.0,0.09081901]
[1761382443412,0.39481087,111800.0,111790.0,0.41288151]
[1761382443617,0.39481087,111800.0,111790.0,0.39499083]
[1761382443818,0.39481087,111800.0,111790.0,0.09081901]
[1761382444104,0.39481087,111800.0,111790.0,0.39499083]
[1761382444537,0.39481087,111800.0,111790.0,0.41888553]
[1761382446098,0.39682817,111800.0,111790.0,0.41888553]
[1761382446516,0.18190817,111800.0,111790.0,0.90196422]
[1761382446757,0.39690817,111800.0,111790.0,0.90196422]
[1761382447395,0.18190817,111800.0,111790.0,0.95196422]
[1761382447535,0.39690817,111800.0,111790.0,0.95196422]
[1761382447936,0.39690817,111800.0,111790.0,0.6477924]
[1761382448535,0.39694817,111800.0,111790.0,0.6477924]
[1761382448943,0.39694817,111800.0,111790.0,0.46888553]
[1761382452112,0.39694817,111800.0,111790.0,0.6477924]
[1761382452539,0.39694817,111800.0,111790.0,0.0748947]
[1761382452760,0.78911948,111800.0,111790.0,0.001]
[1761382452975,0.39694817,111800.0,111790.0,0.001]
[1761382453599,0.39698817,111800.0,111790.0,0.001]
[1761382454022,0.17890687,111790.0,111780.0,0.32811557]
[1761382455559,0.17890687,111790.0,111780.0,0.30422087]
[1761382456387,0.18290687,111790.0,111780.0,0.30422087]
[1761382459442,0.1845881,111790.0,111780.0,0.30422087]
[1761382460376,0.1845881,111790.0,111780.0,0.60839269]
[1761382461171,0.3995481,111790.0,111780.0,0.60839269]
[1761382464557,0.3995481,111790.0,111780.0,0.78731557]
[1761382464883,0.22060123,111790.0,111780.0,0.87713458]
[1761382465297,0.22060123,111790.0,111780.0,0.90102928]
[1761382466198,0.3995081,111790.0,111780.0,0.90102928]
[1761382474997,0.3995081,111790.0,111780.0,0.41793458]
[1761382475193,0.3995081,111790.0,111780.0,0.7221064]
[1761382476021,0.3995081,111790.0,111780.0,0.90102928]
[1761382477091,0.22060123,111790.0,111780.0,0.90102928]
[1761382477288,0.3995081,111790.0,111780.0,0.90102928]
[1761382480104,0.3995081,111790.0,111780.0,0.93293369]
[1761382480426,0.22060123,111790.0,111780.0,0.93293369]
[1761382480831,0.22060123,111790.0,111780.0,2.93293369]
[1761382481237,0.3995081,111790.0,111780.0,2.93293369]
[1761382482803,0.3995081,111790.0,111780.0,0.93293369]
[1761382485733,0.22060123,111790.0,111780.0,0.93293369]
[1761382487883,0.3995081,111790.0,111780.0,0.93293369]
[1761382490726,0.3995081,111790.0,111780.0,0.62882656]
[1761382492184,0.3995081,111790.0,111780.0,0.59692215]
[1761382492736,0.3995081,111790.0,111780.0,0.11376276]
[1761382493407,0.3995081,111790.0,111780.0,0.41799927]
[1761382494905,0.3995081,111790.0,111780.0,0.32818026]
[1761382495338,0.3995081,111790.0,111780.0,0.30428556]
[1761382497487,0.3995081,111790.0,111780.0,0.48320844]
[1761382499576,0.3995081,111790.0,111780.0,0.17897193]
[1761382499805,0.3995081,111790.0,111780.0,0.50110072]